[Event "*** Titled Tuesday Blitz"]
[Site "Chess.com"]
[Date "2021.04.27"]
[Round "1"]
[White "ArjunErigaisi2003"]
[Black "Alex-11211"]
[Result "1-0"]
[WhiteElo "2879"]
[BlackElo "2443"]
[TimeControl "180+1"]
[EndTime "10:07:04 PDT"]
[Termination "ArjunErigaisi2003 won on time"]

1. e4 {[%clk 0:02:40.3]} 1... g6 {[%clk 0:03:00]} 2. d4 {[%clk 0:02:39.5]} 2...
Bg7 {[%clk 0:03:00.6]} 3. Nc3 {[%clk 0:02:40.1]} 3... c5 {[%clk 0:03:01.1]} 4.
d5 {[%clk 0:02:40.1]} 4... d6 {[%clk 0:03:00.9]} 5. f4 {[%clk 0:02:39.4]} 5...
Nf6 {[%clk 0:03:01.1]} 6. Nf3 {[%clk 0:02:39.9]} 6... O-O {[%clk 0:03:00.8]} 7.
Be2 {[%clk 0:02:39.7]} 7... Na6 {[%clk 0:02:29.5]} 8. O-O {[%clk 0:02:36.6]}
8... Nc7 {[%clk 0:02:29.6]} 9. a4 {[%clk 0:02:35.4]} 9... a6 {[%clk 0:02:27.8]}
10. a5 {[%clk 0:02:35.1]} 10... Bd7 {[%clk 0:02:25.7]} 11. e5 {[%clk 0:02:33.8]}
11... Nfe8 {[%clk 0:02:25.3]} 12. Re1 {[%clk 0:02:27.3]} 12... Bb5 {[%clk
0:02:23]} 13. Be3 {[%clk 0:02:23]} 13... Bxe2 {[%clk 0:02:19]} 14. Rxe2 {[%clk
0:02:23.9]} 14... Nb5 {[%clk 0:02:18.7]} 15. Ne4 {[%clk 0:02:20.8]} 15... c4
{[%clk 0:01:48.3]} 16. Bb6 {[%clk 0:02:18.6]} 16... Qd7 {[%clk 0:01:41.7]} 17.
Qd2 {[%clk 0:02:11.5]} 17... Nec7 {[%clk 0:01:26.7]} 18. Rd1 {[%clk 0:02:11.6]}
18... Rac8 {[%clk 0:01:21.2]} 19. c3 {[%clk 0:02:07.8]} 19... Na8 {[%clk
0:01:05.1]} 20. Bf2 {[%clk 0:02:04.9]} 20... Qc7 {[%clk 0:01:05.1]} 21. exd6
{[%clk 0:01:57.2]} 21... exd6 {[%clk 0:00:50.2]} 22. f5 {[%clk 0:01:57.3]} 22...
Rfe8 {[%clk 0:00:50.1]} 23. Rde1 {[%clk 0:01:49.4]} 23... Qd7 {[%clk 0:00:46]}
24. Qg5 {[%clk 0:01:44.8]} 24... Nac7 {[%clk 0:00:38.4]} 25. f6 {[%clk
0:01:30.9]} 25... Bf8 {[%clk 0:00:36.5]} 26. g4 {[%clk 0:01:27.6]} 26... h6
{[%clk 0:00:19.4]} 27. Qh4 {[%clk 0:01:23.4]} 27... Nxd5 {[%clk 0:00:17.8]} 28.
Bg3 {[%clk 0:01:23.7]} 28... Re6 {[%clk 0:00:11.2]} 29. Rd2 {[%clk 0:01:21]}
29... Qc6 {[%clk 0:00:06.3]} 30. Red1 {[%clk 0:01:17.1]} 30... Rxe4 {[%clk
0:00:03]} 31. Rxd5 {[%clk 0:01:17.7]} 31... Rce8 {[%clk 0:00:03.1]} 32. Qh3
{[%clk 0:01:11.1]} 32... Qd7 {[%clk 0:00:03.1]} 33. Qg2 {[%clk 0:01:07.3]} 33...
Qxg4 {[%clk 0:00:03.3]} 34. R5d2 {[%clk 0:01:07.8]} 34... Qe6 {[%clk 0:00:03.4]}
35. Rf1 {[%clk 0:01:08.2]} 35... Qxf6 {[%clk 0:00:03.4]} 36. Nd4 {[%clk
0:01:05.9]} 36... Qe7 {[%clk 0:00:03.1]} 37. Rdf2 {[%clk 0:01:06.4]} 37... Nxd4
{[%clk 0:00:02.8]} 38. cxd4 {[%clk 0:01:07.3]} 38... f5 {[%clk 0:00:01.9]} 39.
Bxd6 {[%clk 0:01:05]} 39... Qxd6 {[%clk 0:00:01.5]} 40. Rxf5 {[%clk 0:01:05.6]}
40... Bg7 {[%clk 0:00:01.8]} 41. Rf7 {[%clk 0:01:02.8]} 41... Qxd4+ {[%clk
0:00:01.9]} 42. Kh1 {[%clk 0:01:03.2]} 42... Re2 {[%clk 0:00:02.1]} 43. Qxg6
{[%clk 0:00:59.9]} 43... Qd5+ {[%clk 0:00:02.6]} 44. R7f3 {[%clk 0:00:59]} 44...
Rf8 {[%clk 0:00:01.1]} 45. Qh5 {[%clk 0:00:50.3]} 45... Rxf3 {[%clk 0:00:01.4]}
46. Qxd5+ {[%clk 0:00:50.7]} 1-0

[Event "*** Titled Tuesday Blitz"]
[Site "Chess.com"]
[Date "2021.04.27"]
[Round "1"]
[White "Rap_woyska"]
[Black "UmbertoConcelli"]
[Result "0-1"]
[WhiteElo "2430"]
[BlackElo "2832"]
[TimeControl "180+1"]
[EndTime "10:07:09 PDT"]
[Termination "UmbertoConcelli won by resignation"]

1. c4 {[%clk 0:03:00.9]} 1... Nf6 {[%clk 0:02:47]} 2. Nf3 {[%clk 0:02:59.7]}
2... c5 {[%clk 0:02:45.6]} 3. Nc3 {[%clk 0:02:59.2]} 3... e6 {[%clk 0:02:43.2]}
4. e3 {[%clk 0:02:59.2]} 4... d5 {[%clk 0:02:42.3]} 5. d4 {[%clk 0:03:00.1]}
5... Nc6 {[%clk 0:02:40]} 6. cxd5 {[%clk 0:03:00.1]} 6... exd5 {[%clk
0:02:39.6]} 7. Bb5 {[%clk 0:03:00]} 7... Bd6 {[%clk 0:02:37.5]} 8. O-O {[%clk
0:02:58.6]} 8... O-O {[%clk 0:02:36.9]} 9. dxc5 {[%clk 0:02:59.1]} 9... Bxc5
{[%clk 0:02:36.7]} 10. b3 {[%clk 0:03:00]} 10... Bg4 {[%clk 0:02:32.9]} 11. Bb2
{[%clk 0:02:58.6]} 11... a6 {[%clk 0:02:24.5]} 12. Be2 {[%clk 0:02:58.5]} 12...
Bd6 {[%clk 0:02:20.9]} 13. h3 {[%clk 0:02:58.4]} 13... Bh5 {[%clk 0:02:20.4]}
14. Nh4 {[%clk 0:02:58.7]} 14... Bg6 {[%clk 0:02:11.1]} 15. Bf3 {[%clk
0:02:46.3]} 15... Be5 {[%clk 0:02:09.3]} 16. Nxg6 {[%clk 0:02:45.9]} 16... hxg6
{[%clk 0:02:08.9]} 17. Rb1 {[%clk 0:02:10.2]} 17... Bxc3 {[%clk 0:01:48.6]} 18.
Bxc3 {[%clk 0:02:09.8]} 18... Ne4 {[%clk 0:01:49.5]} 19. Ba1 {[%clk 0:01:59.2]}
19... Qa5 {[%clk 0:01:45.7]} 20. a4 {[%clk 0:01:49.9]} 20... Rad8 {[%clk
0:01:44.5]} 21. Qd3 {[%clk 0:01:47.4]} 21... Nd2 {[%clk 0:01:32.6]} 22. Bc3
{[%clk 0:01:33.8]} 22... Nxf3+ {[%clk 0:01:31.4]} 23. gxf3 {[%clk 0:01:34.7]}
23... Qc7 {[%clk 0:01:31]} 24. Rbc1 {[%clk 0:01:28.3]} 24... Qd7 {[%clk
0:01:29.2]} 25. Kg2 {[%clk 0:01:27.9]} 25... Rfe8 {[%clk 0:01:26.9]} 26. Bd4
{[%clk 0:01:27]} 26... g5 {[%clk 0:01:21.1]} 27. Rc5 {[%clk 0:01:20.3]} 27...
Re6 {[%clk 0:01:20]} 28. Rh1 {[%clk 0:01:02.4]} 28... Rh6 {[%clk 0:01:14.3]} 29.
Qd2 {[%clk 0:01:00]} 29... Re8 {[%clk 0:01:08.7]} 30. b4 {[%clk 0:00:59]} 30...
Rh4 {[%clk 0:01:03.7]} 31. b5 {[%clk 0:00:58]} 31... axb5 {[%clk 0:01:03.1]} 32.
axb5 {[%clk 0:00:58.9]} 32... Nxd4 {[%clk 0:01:03.2]} 33. exd4 {[%clk
0:00:56.7]} 33... Rf4 {[%clk 0:01:02.3]} 34. b6 {[%clk 0:00:51.8]} 34... Qf5
{[%clk 0:00:59.8]} 35. Rc3 {[%clk 0:00:37.8]} 35... Re6 {[%clk 0:00:58.5]} 36.
Re1 {[%clk 0:00:36.9]} 36... Rxb6 {[%clk 0:00:54.4]} 37. Re8+ {[%clk 0:00:35.2]}
37... Kh7 {[%clk 0:00:54.1]} 38. Qe3 {[%clk 0:00:33.3]} 38... Rh6 {[%clk
0:00:49.5]} 39. Kf1 {[%clk 0:00:30.2]} 39... Qxh3+ {[%clk 0:00:48.2]} 40. Ke2
{[%clk 0:00:30.1]} 40... Qf5 {[%clk 0:00:41.8]} 41. Rcc8 {[%clk 0:00:30.1]}
41... Ra6 {[%clk 0:00:37.6]} 42. Rh8+ {[%clk 0:00:28.4]} 42... Kg6 {[%clk
0:00:37.7]} 43. Kf1 {[%clk 0:00:29.1]} 43... Rxf3 {[%clk 0:00:35.8]} 0-1

[Event "*** Titled Tuesday Blitz"]
[Site "Chess.com"]
[Date "2021.04.27"]
[Round "1"]
[White "AsaHoffmann"]
[Black "gurelediz"]
[Result "0-1"]
[WhiteElo "2340"]
[BlackElo "2673"]
[TimeControl "180+1"]
[EndTime "10:07:10 PDT"]
[Termination "gurelediz won by resignation"]

1. d4 {[%clk 0:02:53.5]} 1... Nf6 {[%clk 0:02:59.6]} 2. Bg5 {[%clk 0:02:51.1]}
2... e6 {[%clk 0:02:59.4]} 3. e3 {[%clk 0:02:48.4]} 3... Be7 {[%clk 0:02:59.6]}
4. Bd3 {[%clk 0:02:45.6]} 4... c5 {[%clk 0:02:59.3]} 5. c3 {[%clk 0:02:40.2]}
5... Nc6 {[%clk 0:02:57.8]} 6. Nd2 {[%clk 0:02:38.3]} 6... d6 {[%clk 0:02:56.6]}
7. Ngf3 {[%clk 0:02:37.7]} 7... h6 {[%clk 0:02:56.5]} 8. Bh4 {[%clk 0:02:37.1]}
8... e5 {[%clk 0:02:55.7]} 9. dxe5 {[%clk 0:02:32.3]} 9... dxe5 {[%clk
0:02:55.5]} 10. Bb5 {[%clk 0:02:26]} 10... Bd7 {[%clk 0:02:53.4]} 11. O-O {[%clk
0:02:23.7]} 11... Qc7 {[%clk 0:02:37.1]} 12. Bg3 {[%clk 0:02:15.5]} 12... O-O
{[%clk 0:02:08]} 13. Bxc6 {[%clk 0:02:14.2]} 13... Bxc6 {[%clk 0:02:08.9]} 14.
Nxe5 {[%clk 0:02:07.9]} 14... Qc8 {[%clk 0:02:03.8]} 15. Nxc6 {[%clk 0:02:07.1]}
15... Qxc6 {[%clk 0:02:03.3]} 16. Qf3 {[%clk 0:02:05.2]} 16... Qb5 {[%clk
0:01:55.4]} 17. Ne4 {[%clk 0:01:54]} 17... Qxb2 {[%clk 0:01:47.8]} 18. Rab1
{[%clk 0:01:52.2]} 18... Qc2 {[%clk 0:01:40.3]} 19. Rxb7 {[%clk 0:01:46.7]}
19... Nxe4 {[%clk 0:01:27.4]} 20. Rxe7 {[%clk 0:01:44.8]} 20... Nd2 {[%clk
0:01:23.1]} 21. Qe2 {[%clk 0:01:42.3]} 21... Qxc3 {[%clk 0:01:23.5]} 22. Rd1
{[%clk 0:01:38]} 22... Rad8 {[%clk 0:01:23.3]} 23. Rxa7 {[%clk 0:01:33]} 23...
Ne4 {[%clk 0:01:21]} 24. Qe1 {[%clk 0:01:25.2]} 24... Rxd1 {[%clk 0:01:08.7]}
25. Qxd1 {[%clk 0:01:24.8]} 25... Qb2 {[%clk 0:01:03.7]} 26. Re7 {[%clk
0:01:06.2]} 26... Nc3 {[%clk 0:00:42.3]} 27. Qe1 {[%clk 0:00:54.1]} 27... Ne2+
{[%clk 0:00:33.1]} 28. Kh1 {[%clk 0:00:53.3]} 28... c4 {[%clk 0:00:28.6]} 29.
Rc7 {[%clk 0:00:48.7]} 29... Qxa2 {[%clk 0:00:16.2]} 30. Be5 {[%clk 0:00:42.8]}
30... Rb8 {[%clk 0:00:11]} 31. Rd7 {[%clk 0:00:16.8]} 31... Rb1 {[%clk
0:00:08.7]} 32. Rd1 {[%clk 0:00:16.2]} 32... Rxd1 {[%clk 0:00:09.3]} 33. Qxd1
{[%clk 0:00:16]} 33... c3 {[%clk 0:00:10.2]} 34. g3 {[%clk 0:00:14.1]} 34... c2
{[%clk 0:00:07.7]} 35. Qxe2 {[%clk 0:00:14.1]} 35... c1=Q+ {[%clk 0:00:07.2]}
36. Kg2 {[%clk 0:00:14.2]} 36... Qxe2 {[%clk 0:00:07.7]} 0-1

[Event "*** Titled Tuesday Blitz"]
[Site "Chess.com"]
[Date "2021.04.27"]
[Round "1"]
[White "harlem4brew"]
[Black "1977Ivan"]
[Result "1-0"]
[WhiteElo "2374"]
[BlackElo "2672"]
[TimeControl "180+1"]
[EndTime "10:07:11 PDT"]
[Termination "harlem4brew won on time"]

1. e4 {[%clk 0:02:59.8]} 1... c5 {[%clk 0:02:59.4]} 2. Nf3 {[%clk 0:02:58.2]}
2... e6 {[%clk 0:02:59.7]} 3. d4 {[%clk 0:02:54.3]} 3... cxd4 {[%clk 0:02:59.3]}
4. Nxd4 {[%clk 0:02:53.7]} 4... Nc6 {[%clk 0:02:59.5]} 5. Nc3 {[%clk 0:02:53.7]}
5... Qc7 {[%clk 0:02:59.3]} 6. Be2 {[%clk 0:02:53.3]} 6... a6 {[%clk 0:02:56.4]}
7. O-O {[%clk 0:02:53.6]} 7... b5 {[%clk 0:02:56.1]} 8. Bf3 {[%clk 0:02:48.3]}
8... Bb7 {[%clk 0:02:53.1]} 9. Nxc6 {[%clk 0:02:44.7]} 9... Qxc6 {[%clk
0:02:50.9]} 10. Re1 {[%clk 0:02:44]} 10... Qd6 {[%clk 0:02:13.5]} 11. Qe2 {[%clk
0:02:35.4]} 11... Qc7 {[%clk 0:01:58.4]} 12. e5 {[%clk 0:02:28.6]} 12... Ne7
{[%clk 0:01:47.5]} 13. Bf4 {[%clk 0:02:19.6]} 13... Ng6 {[%clk 0:01:34.4]} 14.
Bg3 {[%clk 0:02:17.4]} 14... Rc8 {[%clk 0:01:26.9]} 15. Bxb7 {[%clk 0:02:07.5]}
15... Qxb7 {[%clk 0:01:27.8]} 16. Ne4 {[%clk 0:02:07.7]} 16... Be7 {[%clk
0:01:24.6]} 17. c3 {[%clk 0:02:06.1]} 17... h5 {[%clk 0:01:18.1]} 18. h3 {[%clk
0:02:05.1]} 18... f5 {[%clk 0:01:06.7]} 19. exf6 {[%clk 0:02:01.1]} 19... gxf6
{[%clk 0:01:07.6]} 20. Rad1 {[%clk 0:01:50.3]} 20... f5 {[%clk 0:01:02.5]} 21.
Nd6+ {[%clk 0:01:47.8]} 21... Bxd6 {[%clk 0:01:02.2]} 22. Bxd6 {[%clk
0:01:48.7]} 22... Rc4 {[%clk 0:00:57.2]} 23. Qd3 {[%clk 0:01:44.4]} 23... Nh4
{[%clk 0:00:53]} 24. Qg3 {[%clk 0:01:32.5]} 24... Kf7 {[%clk 0:00:45.5]} 25. Bf4
{[%clk 0:01:01.5]} 25... Rg8 {[%clk 0:00:29.2]} 26. Rxd7+ {[%clk 0:00:40.2]}
26... Qxd7 {[%clk 0:00:30.1]} 27. Qxh4 {[%clk 0:00:40.2]} 27... Rg6 {[%clk
0:00:22]} 28. Re3 {[%clk 0:00:26.2]} 28... Qd1+ {[%clk 0:00:16.3]} 29. Kh2
{[%clk 0:00:26.2]} 29... Qf1 {[%clk 0:00:13.3]} 30. Rg3 {[%clk 0:00:20.5]} 30...
Rxg3 {[%clk 0:00:11.3]} 31. Qxg3 {[%clk 0:00:19.4]} 31... Qe2 {[%clk 0:00:07.7]}
32. Be5 {[%clk 0:00:19.2]} 32... Ke8 {[%clk 0:00:03.9]} 33. Qg8+ {[%clk
0:00:19.1]} 33... Kd7 {[%clk 0:00:03.7]} 34. Qf7+ {[%clk 0:00:19.7]} 34... Kc6
{[%clk 0:00:03.8]} 35. Qxe6+ {[%clk 0:00:20.2]} 35... Kb7 {[%clk 0:00:01.1]} 36.
Qe7+ {[%clk 0:00:20.7]} 1-0

[Event "*** Titled Tuesday Blitz"]
[Site "Chess.com"]
[Date "2021.04.27"]
[Round "1"]
[White "Matols"]
[Black "juancruzarias"]
[Result "0-1"]
[WhiteElo "2239"]
[BlackElo "2570"]
[TimeControl "180+1"]
[EndTime "10:07:11 PDT"]
[Termination "juancruzarias won by resignation"]

1. d4 {[%clk 0:03:00.9]} 1... e6 {[%clk 0:02:50]} 2. c4 {[%clk 0:03:00.4]} 2...
Nf6 {[%clk 0:02:49.3]} 3. g3 {[%clk 0:02:59.7]} 3... Bb4+ {[%clk 0:02:49.2]} 4.
Bd2 {[%clk 0:02:59.1]} 4... Qe7 {[%clk 0:02:49]} 5. Nf3 {[%clk 0:02:58.4]} 5...
Nc6 {[%clk 0:02:49.1]} 6. Nc3 {[%clk 0:02:54.7]} 6... O-O {[%clk 0:02:46.4]} 7.
Bg2 {[%clk 0:02:52.7]} 7... b6 {[%clk 0:02:45.9]} 8. O-O {[%clk 0:02:51.5]} 8...
Na5 {[%clk 0:02:45.8]} 9. b3 {[%clk 0:02:44.6]} 9... Bb7 {[%clk 0:02:39.8]} 10.
Qc2 {[%clk 0:02:41.3]} 10... Rac8 {[%clk 0:02:34.7]} 11. Rad1 {[%clk 0:02:13.2]}
11... c5 {[%clk 0:02:12.5]} 12. d5 {[%clk 0:01:59.2]} 12... exd5 {[%clk
0:02:07.3]} 13. Nxd5 {[%clk 0:01:38.9]} 13... Bxd5 {[%clk 0:01:41.7]} 14. cxd5
{[%clk 0:01:33]} 14... Qxe2 {[%clk 0:01:38.8]} 15. Rfe1 {[%clk 0:01:21.9]} 15...
Qa6 {[%clk 0:01:37.8]} 16. Bxb4 {[%clk 0:01:08.4]} 16... cxb4 {[%clk 0:01:37.8]}
17. Qf5 {[%clk 0:01:07.6]} 17... Nb7 {[%clk 0:01:27.6]} 18. d6 {[%clk 0:01:02]}
18... Rc5 {[%clk 0:01:24.6]} 19. Ne5 {[%clk 0:00:57.4]} 19... Qa5 {[%clk
0:01:10.6]} 20. Bxb7 {[%clk 0:00:54.7]} 20... Re8 {[%clk 0:01:06.6]} 21. f4
{[%clk 0:00:54.1]} 21... Qxa2 {[%clk 0:01:03.2]} 22. Qd3 {[%clk 0:00:51.4]}
22... Rc3 {[%clk 0:00:59.3]} 23. Qb1 {[%clk 0:00:47.3]} 23... Qa5 {[%clk
0:00:56.3]} 24. Rc1 {[%clk 0:00:45.8]} 24... Qc5+ {[%clk 0:00:56.4]} 25. Kh1
{[%clk 0:00:43.2]} 25... Qxd6 {[%clk 0:00:54.3]} 26. Rxc3 {[%clk 0:00:42.1]}
26... bxc3 {[%clk 0:00:55.2]} 27. Qc2 {[%clk 0:00:41.4]} 27... Qc5 {[%clk
0:00:51.2]} 28. Rc1 {[%clk 0:00:40.8]} 28... d6 {[%clk 0:00:49.2]} 29. Nf3
{[%clk 0:00:35.6]} 29... Re3 {[%clk 0:00:47.7]} 30. Ng5 {[%clk 0:00:34]} 30...
d5 {[%clk 0:00:37.8]} 31. Qf2 {[%clk 0:00:23.5]} 31... h6 {[%clk 0:00:35.6]} 32.
Nf3 {[%clk 0:00:19.9]} 32... d4 {[%clk 0:00:34.6]} 33. Ne5 {[%clk 0:00:19.3]}
33... d3 {[%clk 0:00:19.6]} 34. Re1 {[%clk 0:00:17.3]} 34... Rxe1+ {[%clk
0:00:19.3]} 35. Qxe1 {[%clk 0:00:17.4]} 35... d2 {[%clk 0:00:19.6]} 36. Qd1
{[%clk 0:00:15.3]} 36... c2 {[%clk 0:00:18.1]} 37. Qxd2 {[%clk 0:00:14.4]} 37...
c1=Q+ {[%clk 0:00:18.1]} 0-1

[Event "*** Titled Tuesday Blitz"]
[Site "Chess.com"]
[Date "2021.04.27"]
[Round "1"]
[White "Chandradi"]
[Black "grzechu96"]
[Result "1-0"]
[WhiteElo "2375"]
[BlackElo "2684"]
[TimeControl "180+1"]
[EndTime "10:07:12 PDT"]
[Termination "Chandradi won on time"]

1. c4 {[%clk 0:02:58.9]} 1... e5 {[%clk 0:02:57.3]} 2. g3 {[%clk 0:02:59]} 2...
Nf6 {[%clk 0:02:56.4]} 3. Bg2 {[%clk 0:02:59.1]} 3... d5 {[%clk 0:02:56.7]} 4.
cxd5 {[%clk 0:03:00]} 4... Nxd5 {[%clk 0:02:57.6]} 5. Nc3 {[%clk 0:03:00.5]}
5... Nb6 {[%clk 0:02:57.4]} 6. Nf3 {[%clk 0:03:00.4]} 6... Nc6 {[%clk
0:02:57.4]} 7. O-O {[%clk 0:03:00.2]} 7... Be7 {[%clk 0:02:57.7]} 8. a3 {[%clk
0:03:00.3]} 8... O-O {[%clk 0:02:57.5]} 9. d3 {[%clk 0:02:59.7]} 9... Re8 {[%clk
0:02:57.8]} 10. b4 {[%clk 0:02:59]} 10... Bf8 {[%clk 0:02:57.6]} 11. Bb2 {[%clk
0:02:52.9]} 11... Bg4 {[%clk 0:02:55.6]} 12. h3 {[%clk 0:02:48.4]} 12... Bh5
{[%clk 0:02:55.9]} 13. Rc1 {[%clk 0:02:45.3]} 13... a5 {[%clk 0:02:32.8]} 14. b5
{[%clk 0:02:44.3]} 14... Nd4 {[%clk 0:02:33.3]} 15. g4 {[%clk 0:02:29.2]} 15...
Bg6 {[%clk 0:02:32.8]} 16. Nxd4 {[%clk 0:02:28]} 16... exd4 {[%clk 0:02:33.1]}
17. Ne4 {[%clk 0:02:28]} 17... Qd7 {[%clk 0:01:50.7]} 18. Nc5 {[%clk 0:02:02.8]}
18... Bxc5 {[%clk 0:00:37.6]} 19. Rxc5 {[%clk 0:02:03.7]} 19... Rab8 {[%clk
0:00:25.8]} 20. Qc2 {[%clk 0:01:54.8]} 20... Re7 {[%clk 0:00:25.3]} 21. Rc1
{[%clk 0:01:51.1]} 21... Qe8 {[%clk 0:00:04.4]} 22. Bf3 {[%clk 0:01:47.2]} 22...
Rc8 {[%clk 0:00:02.2]} 23. Bxd4 {[%clk 0:01:46.4]} 23... Nd7 {[%clk 0:00:01.3]}
24. Rxc7 {[%clk 0:01:43]} 24... Rd8 {[%clk 0:00:01.4]} 25. Rxb7 {[%clk
0:01:36.4]} 25... Ne5 {[%clk 0:00:01.3]} 26. Bxe5 {[%clk 0:01:30.8]} 26... Rxe5
{[%clk 0:00:02.2]} 27. a4 {[%clk 0:01:24]} 27... Qe6 {[%clk 0:00:02.1]} 28. Qc6
{[%clk 0:01:20.4]} 28... Qb3 {[%clk 0:00:02.1]} 29. Qc4 {[%clk 0:01:17.4]} 29...
Qb2 {[%clk 0:00:02]} 30. Qc3 {[%clk 0:01:11.8]} 30... Qxc3 {[%clk 0:00:02.5]}
31. Rxc3 {[%clk 0:01:11.2]} 31... h5 {[%clk 0:00:03.4]} 32. gxh5 {[%clk
0:01:03.3]} 32... Bf5 {[%clk 0:00:03.6]} 33. Kg2 {[%clk 0:01:01.1]} 33... Be6
{[%clk 0:00:03.8]} 34. Ra7 {[%clk 0:00:46.3]} 34... Rg5+ {[%clk 0:00:03.3]} 35.
Kh2 {[%clk 0:00:45.7]} 35... Rd4 {[%clk 0:00:02.8]} 36. Be4 {[%clk 0:00:40.6]}
36... g6 {[%clk 0:00:01.3]} 37. e3 {[%clk 0:00:37.4]} 37... Rxa4 {[%clk
0:00:01.3]} 38. hxg6 {[%clk 0:00:36.1]} 38... Ra1 {[%clk 0:00:01]} 39. gxf7+
{[%clk 0:00:33.2]} 1-0

[Event "*** Titled Tuesday Blitz"]
[Site "Chess.com"]
[Date "2021.04.27"]
[Round "1"]
[White "StockholmMissile"]
[Black "MarkoPe"]
[Result "1-0"]
[WhiteElo "2598"]
[BlackElo "2270"]
[TimeControl "180+1"]
[EndTime "10:07:13 PDT"]
[Termination "StockholmMissile won by checkmate"]

1. d4 {[%clk 0:03:00.4]} 1... d5 {[%clk 0:02:59.2]} 2. c4 {[%clk 0:02:59.5]}
2... e6 {[%clk 0:02:59.3]} 3. Nf3 {[%clk 0:02:59.4]} 3... c6 {[%clk 0:02:59.4]}
4. Nbd2 {[%clk 0:02:58.9]} 4... Nf6 {[%clk 0:02:57.4]} 5. g3 {[%clk 0:02:58.4]}
5... Bd6 {[%clk 0:02:49.8]} 6. Bg2 {[%clk 0:02:57.6]} 6... Nbd7 {[%clk
0:02:49.8]} 7. Qc2 {[%clk 0:02:56.1]} 7... e5 {[%clk 0:02:43.8]} 8. cxd5 {[%clk
0:02:54.6]} 8... Nxd5 {[%clk 0:02:37]} 9. O-O {[%clk 0:02:53.9]} 9... O-O {[%clk
0:02:34.6]} 10. Nc4 {[%clk 0:02:53.2]} 10... Qe7 {[%clk 0:02:13.9]} 11. Nxd6
{[%clk 0:02:49]} 11... Qxd6 {[%clk 0:02:14.8]} 12. Rd1 {[%clk 0:02:48.8]} 12...
exd4 {[%clk 0:02:02.5]} 13. Nxd4 {[%clk 0:02:47.9]} 13... N7f6 {[%clk
0:01:59.7]} 14. e4 {[%clk 0:02:35.1]} 14... Nb4 {[%clk 0:01:59.1]} 15. Qe2
{[%clk 0:02:33.5]} 15... Qe7 {[%clk 0:01:43.5]} 16. Bd2 {[%clk 0:02:07.6]} 16...
Na6 {[%clk 0:01:15.3]} 17. h3 {[%clk 0:02:02.3]} 17... Be6 {[%clk 0:01:10.7]}
18. f4 {[%clk 0:01:58]} 18... Rad8 {[%clk 0:01:09.1]} 19. Bc3 {[%clk 0:01:57.3]}
19... Nc5 {[%clk 0:01:03.7]} 20. Rac1 {[%clk 0:01:55.9]} 20... Rfe8 {[%clk
0:01:03.2]} 21. Bb4 {[%clk 0:01:52.1]} 21... Nfd7 {[%clk 0:00:52.4]} 22. f5
{[%clk 0:01:46.2]} 22... Bxa2 {[%clk 0:00:51.6]} 23. b3 {[%clk 0:01:42.6]} 23...
a5 {[%clk 0:00:41.8]} 24. Ba3 {[%clk 0:01:39.1]} 24... Qg5 {[%clk 0:00:25.2]}
25. Qxa2 {[%clk 0:01:31.6]} 25... Nxe4 {[%clk 0:00:21.9]} 26. Bxe4 {[%clk
0:01:16.1]} 26... Rxe4 {[%clk 0:00:21.1]} 27. Qf2 {[%clk 0:01:09.6]} 27... h5
{[%clk 0:00:10.4]} 28. Rc3 {[%clk 0:01:02.6]} 28... Ne5 {[%clk 0:00:10.1]} 29.
Bc1 {[%clk 0:00:55.7]} 29... Qf6 {[%clk 0:00:07.7]} 30. Be3 {[%clk 0:00:49.7]}
30... h4 {[%clk 0:00:05.7]} 31. g4 {[%clk 0:00:48.9]} 31... c5 {[%clk
0:00:05.2]} 32. Rxc5 {[%clk 0:00:44.2]} 32... Rexd4 {[%clk 0:00:01.7]} 33. Bxd4
{[%clk 0:00:36.9]} 33... Rxd4 {[%clk 0:00:01.9]} 34. Rxd4 {[%clk 0:00:35.9]}
34... Nf3+ {[%clk 0:00:02.2]} 35. Qxf3 {[%clk 0:00:35.8]} 35... Qxd4+ {[%clk
0:00:02.8]} 36. Qf2 {[%clk 0:00:36.4]} 36... Qd1+ {[%clk 0:00:03.2]} 37. Kg2
{[%clk 0:00:36.2]} 37... Qxb3 {[%clk 0:00:03.6]} 38. Rc8+ {[%clk 0:00:29.2]}
38... Kh7 {[%clk 0:00:03.5]} 39. Qxh4# {[%clk 0:00:29.2]} 1-0

[Event "*** Titled Tuesday Blitz"]
[Site "Chess.com"]
[Date "2021.04.27"]
[Round "1"]
[White "ckgchess"]
[Black "pavelalexandru07"]
[Result "1-0"]
[WhiteElo "2685"]
[BlackElo "2353"]
[TimeControl "180+1"]
[EndTime "10:07:14 PDT"]
[Termination "ckgchess won by resignation"]

1. e4 {[%clk 0:03:00.9]} 1... c5 {[%clk 0:02:27.8]} 2. c3 {[%clk 0:02:59.2]}
2... Nf6 {[%clk 0:02:27]} 3. e5 {[%clk 0:02:59.5]} 3... Nd5 {[%clk 0:02:27.2]}
4. d4 {[%clk 0:03:00.1]} 4... Nc6 {[%clk 0:02:25.4]} 5. Nf3 {[%clk 0:02:46.8]}
5... cxd4 {[%clk 0:02:23.3]} 6. cxd4 {[%clk 0:02:47.7]} 6... d6 {[%clk
0:02:23.2]} 7. Bc4 {[%clk 0:02:47.3]} 7... Nb6 {[%clk 0:02:23.5]} 8. Bb5 {[%clk
0:02:47.5]} 8... dxe5 {[%clk 0:02:23.9]} 9. Nxe5 {[%clk 0:02:48.4]} 9... Bd7
{[%clk 0:02:24]} 10. Nxd7 {[%clk 0:02:49]} 10... Qxd7 {[%clk 0:02:24.5]} 11. O-O
{[%clk 0:02:49.9]} 11... e6 {[%clk 0:02:24.9]} 12. Nc3 {[%clk 0:02:50]} 12... a6
{[%clk 0:02:25]} 13. Bxc6 {[%clk 0:02:48.9]} 13... Qxc6 {[%clk 0:02:25.4]} 14.
Qg4 {[%clk 0:02:48.3]} 14... h5 {[%clk 0:02:24.9]} 15. Qg5 {[%clk 0:02:41.2]}
15... Rd8 {[%clk 0:01:58.8]} 16. Be3 {[%clk 0:02:34.1]} 16... Rh6 {[%clk
0:01:44.9]} 17. Qh4 {[%clk 0:02:15.5]} 17... Be7 {[%clk 0:01:30.5]} 18. Qh3
{[%clk 0:02:14.9]} 18... g5 {[%clk 0:01:19.6]} 19. Rac1 {[%clk 0:02:08.4]} 19...
g4 {[%clk 0:00:59.8]} 20. Qg3 {[%clk 0:02:07.8]} 20... Rg6 {[%clk 0:01:00.3]}
21. Qe5 {[%clk 0:01:36.8]} 21... Bf6 {[%clk 0:00:34.3]} 22. Qxh5 {[%clk
0:01:34.4]} 22... Ke7 {[%clk 0:00:32.1]} 23. Ne2 {[%clk 0:01:18.7]} 23... Qd5
{[%clk 0:00:24]} 24. Rc7+ {[%clk 0:01:09.9]} 24... Rd7 {[%clk 0:00:24.2]} 25.
Rxd7+ {[%clk 0:01:05.2]} 25... Kxd7 {[%clk 0:00:25.1]} 26. Qxd5+ {[%clk
0:00:59.2]} 26... Nxd5 {[%clk 0:00:24.9]} 27. Rc1 {[%clk 0:00:57.6]} 27... Rg8
{[%clk 0:00:24.4]} 28. Nc3 {[%clk 0:00:53.2]} 28... Rc8 {[%clk 0:00:17.5]} 29.
Nxd5 {[%clk 0:00:46.9]} 29... Rxc1+ {[%clk 0:00:18.4]} 30. Bxc1 {[%clk
0:00:47.7]} 30... exd5 {[%clk 0:00:19]} 31. Be3 {[%clk 0:00:48.6]} 31... Ke6
{[%clk 0:00:19]} 32. Kf1 {[%clk 0:00:42]} 32... Kd7 {[%clk 0:00:16.5]} 33. Ke2
{[%clk 0:00:42.4]} 33... Kc6 {[%clk 0:00:16.9]} 34. f3 {[%clk 0:00:28.7]} 34...
gxf3+ {[%clk 0:00:15.9]} 35. gxf3 {[%clk 0:00:29.1]} 35... Kb5 {[%clk
0:00:16.4]} 36. Kd3 {[%clk 0:00:29.5]} 36... a5 {[%clk 0:00:12.4]} 37. Bf2
{[%clk 0:00:29.6]} 37... b6 {[%clk 0:00:12.2]} 38. h4 {[%clk 0:00:29.8]} 38...
Kb4 {[%clk 0:00:10.7]} 39. h5 {[%clk 0:00:29.9]} 39... b5 {[%clk 0:00:05.4]} 40.
h6 {[%clk 0:00:29.8]} 40... a4 {[%clk 0:00:05.5]} 1-0